lending/lending_fUSD_20240604
["ID","MTS","AMOUNT","RATE_DAILY","PERIOD"]
[328516727,1717485032988,-251.99972606,0.00010527,2]
[328516728,1717485032998,-156.47247291,0.00010527,2]
[328516729,1717485033007,-155.0,0.00010527,2]
[328516730,1717485033017,-2371.0294493,0.00010527,2]
[328516731,1717485033027,-257.88603198,0.00010527,2]
[328516732,1717485033036,-344.53463632,0.00010527,2]
[328516733,1717485033045,-1386.18024784,0.00010527,2]
[328516734,1717485033055,-155.10786649,0.00010527,2]
[328516735,1717485033066,-795.0,0.00010531,2]
[328516736,1717485033075,-242.05973011,0.00010532,2]
[328516737,1717485033085,-155.0,0.00010532,2]
[328516738,1717485033094,-2012.83631027,0.00010532,2]
[328516739,1717485033104,-7534.4655871,0.00010532,2]
[328516740,1717485033114,-155.44304881,0.00010532,2]
[328516741,1717485033124,-155.95925662,0.00010532,2]
[328516742,1717485033133,-328.91730917,0.00010535,2]
[328516743,1717485033143,-552.46368907,0.00010535,2]
[328516744,1717485033153,-361.22735375,0.00010536,2]
[328516745,1717485033162,-269.47512701,0.00010536,2]
[328516746,1717485033172,-1217.60094334,0.00010536,2]
[328516747,1717485033182,-577.12199821,0.00010536,2]
[328516748,1717485033191,-282.59682608,0.00010536,2]
[328516749,1717485033200,-155.74476653,0.00010536,2]
[328516750,1717485033209,-4348.12812062,0.00010536,2]
[328516751,1717485033220,-202.41999235,0.00010536,2]
[328516752,1717485033229,-266.98745558,0.00010536,2]
[328516753,1717485033239,-1918.38769886,0.00010536,2]
[328516754,1717485033250,-3097.54023704,0.00010536,2]
[328516755,1717485033260,-155.0,0.00010536,2]
[328516756,1717485033270,-1275.80404584,0.00010536,2]
[328516757,1717485033280,-333.82252227,0.00010536,2]
[328516758,1717485033290,-155.16729668,0.00010536,2]
[328516759,1717485033299,-234.83520174,0.00010536,2]
[328516760,1717485033311,-155.82462055,0.00010536,2]
[328516761,1717485033324,-237.90651467,0.00010536,2]
[328516762,1717485033333,-2818.93117646,0.00010536,2]
[328516763,1717485033343,-1369.14148522,0.00010536,2]
[328516764,1717485033352,-168.31576886,0.00010536,2]
[328516765,1717485033362,-155.32666268,0.00010536,2]
[328516766,1717485033372,-1576.85015115,0.00010536,2]
[328516767,1717485033381,-268.92082297,0.00010536,2]
[328516768,1717485033391,-2985.21650801,0.00010537,5]
[328516769,1717485033401,-155.0,0.00010537,2]
[328516770,1717485033410,-461.64,0.00010959,2]
[328516771,1717485033419,-2585.65,0.00010959,2]
[328516772,1717485033429,-187.86,0.00011222,2]
[328516773,1717485033438,-168.33,0.00011649,2]
[328516774,1717485033447,-1000.0,0.00012,2]
[328516775,1717485033456,-28467.21,0.00012055,2]
[328516776,1717485033465,-3878.97,0.00012134,2]
[328516777,1717485033475,-161.93155854,0.0001226,2]
[328516778,1717485033484,-13387.27911488,0.00012261,2]
[328516779,1717485033500,-10512.72088512,0.00012261,2]
[328516780,1717485033511,-89.66235626,0.00012307,2]
[328516781,1717485033525,-160.33764374,0.00012307,2]
[328516782,1717485033534,-154.65,0.0001232,2]
[328516783,1717485033545,-338.57,0.00012352,2]
[328516784,1717485033555,-813.64,0.00012359,2]
[328516785,1717485033565,-111.35992441,0.00012369,2]
[328516786,1717485033578,-348.33170028,0.00012369,2]
[328516787,1717485033587,-2186.61,0.00012372,2]
[328516788,1717485033597,-500.0,0.00012387,2]
[328516789,1717485033607,-379.39,0.00012387,2]
[328516790,1717485033616,-108.94947864,0.000124,2]
[328516791,1717485033641,-482.99531256,0.000124,2]
[328516792,1717485033653,-10374.77999131,0.000124,2]
[328516793,1717485033662,-1752.17,0.00012433,2]
[328516794,1717485033672,-200.0,0.00012455,2]
[328516795,1717485033681,-167.04,0.00012476,2]
[328516796,1717485033691,-155.18999445,0.00012508,2]
[328516797,1717485033700,-154.65,0.00012641,2]
[328516798,1717485033709,-525.35,0.00012801,2]
[328516799,1717485033719,-154.65,0.00012962,2]
[328516800,1717485033728,-172.62,0.00013203,2]
[328516801,1717485033738,-172.62,0.00013206,2]
[328516802,1717485033747,-172.62,0.0001321,2]
[328516803,1717485033757,-172.62,0.00013213,2]
[328516804,1717485033766,-172.62,0.00013217,2]
[328516805,1717485033775,-172.62,0.0001322,2]
[328516806,1717485033785,-172.62,0.00013224,2]
[328516807,1717485033794,-172.62,0.00013227,2]
[328516808,1717485033803,-172.62,0.00013231,2]
[328516809,1717485033815,-172.62,0.00013234,2]
[328516810,1717485033825,-172.62,0.00013237,2]
[328516811,1717485033834,-172.62,0.00013241,2]
[328516812,1717485033844,-172.62,0.00013244,2]
[328516813,1717485033853,-172.62,0.00013248,2]
[328516814,1717485033863,-172.62,0.00013251,2]
[328516815,1717485033872,-172.62,0.00013255,2]
[328516816,1717485033882,-172.62,0.00013258,2]
[328516817,1717485033891,-172.62,0.00013262,2]
[328516818,1717485033900,-172.62,0.00013265,2]
[328516819,1717485033909,-172.62,0.00013269,2]
[328516820,1717485033919,-1304.18884834,0.00013298,2]
[328516821,1717485033928,-400.0,0.000135,4]
[328516822,1717485033937,-800.0,0.000136,4]
[328516823,1717485033947,-486.82,0.00013699,2]
[328516824,1717485033956,-1200.0,0.000137,5]
[328516825,1717485033965,-411.86496791,0.00013725,2]
[328516826,1717485033975,-1600.0,0.000138,5]
[328516827,1717485033984,-319.68177632,0.00013827,2]
[328516828,1717485033994,-172.75891837,0.00013859,2]
[328516829,1717485034004,-1699.27494,0.0001386,2]
[328516830,1717485034013,-226.11145,0.0001386,2]
[328516831,1717485034023,-500.0,0.00013888,2]
[328516832,1717485034032,-195.4977807,0.00013898,2]
[328516833,1717485034041,-366.57457367,0.00013898,2]
[328516834,1717485034051,-304.09980176,0.00013899,2]
[328516835,1717485034063,-93777.01559548,0.00013899,2]
[328516836,1717485034072,-47596.8666,0.000139,2]
[328516837,1717485034081,-4413.41833714,0.000139,2]
[328516838,1717485034090,-1375.1916,0.000139,2]
[328516839,1717485034100,-1000.0,0.000139,2]
[328516840,1717485034109,-1933.5625,0.000139,2]
[328516841,1717485034118,-5829.4704,0.000139,2]
[328516842,1717485034127,-2000.0,0.000139,5]
[328516843,1717485034137,-7500.0,0.000139,2]
[328516844,1717485034146,-3170.33700602,0.000139,2]
[328516845,1717485034155,-681.29634994,0.000139,2]
[328516846,1717485034164,-672.92210178,0.000139,2]
[328516847,1717485034174,-1348.22316184,0.000139,2]
[328516848,1717485034183,-382.13509686,0.00013927,2]
[328516849,1717485034192,-1000.0,0.0001393,2]
[328516850,1717485034202,-420.5938,0.0001393,2]
[328516851,1717485034211,-379.39,0.00013935,2]
[328516852,1717485034220,-154.09,0.0001399,2]
[328516853,1717485034230,-401.07581097,0.00013999,2]
[328516854,1717485034240,-502.0,0.00014,2]
[328516855,1717485034249,-833636.33769753,0.00014,2]
[328516856,1717485034259,-919853.16170506,0.00014,2]
[328516857,1717485034268,-502532.30057911,0.00014,2]
[328516858,1717485034277,-406990.5753298,0.00014,2]
[328516859,1717485034286,-249787.76806029,0.00014,2]
[328516860,1717485034299,-661.68277074,0.00014,2]
[328516861,1717485034312,-299.99,0.00014,2]
[328516862,1717485034364,-1722.88429448,0.00010301,2]
[328516863,1717485034376,-176.95102024,0.00010301,2]
[328516864,1717485034385,-190281.9107497,0.00014,2]
[328516865,1717485034397,-578.0,0.00014,2]
[328516866,1717485034406,-3194.0,0.00014,2]
[328516867,1717485034416,-175.601012,0.00014,2]
[328516868,1717485034426,-183.51375,0.00014,2]
[328516869,1717485034435,-183.51375,0.00014,2]
[328516870,1717485034444,-183.51375,0.00014,2]
[328516871,1717485034454,-183.51375,0.00014,2]
[328516872,1717485034463,-183.51375,0.00014,2]
[328516873,1717485034472,-183.51375,0.00014,2]
[328516874,1717485034482,-183.51375,0.00014,2]
[328516875,1717485034491,-183.51375,0.00014,2]
[328516876,1717485034501,-183.51375,0.00014,2]
[328516877,1717485034510,-183.51375,0.00014,2]
[328516878,1717485034519,-206.438908,0.00014,2]
[328516879,1717485034529,-166.677551,0.00014,2]
[328516880,1717485034538,-166.677551,0.00014,2]
[328516881,1717485034547,-166.677551,0.00014,2]
[328516882,1717485034557,-166.677551,0.00014,2]
[328516883,1717485034568,-166.677551,0.00014,2]
[328516884,1717485034577,-166.677551,0.00014,2]
[328516885,1717485034587,-166.677551,0.00014,2]
[328516886,1717485034596,-166.677551,0.00014,2]
[328516887,1717485034605,-166.677551,0.00014,2]
[328516888,1717485034615,-166.677551,0.00014,2]
[328516889,1717485034624,-151.0,0.00014,2]
[328516890,1717485034633,-151.0,0.00014,2]
[328516891,1717485034642,-151.0,0.00014,2]
[328516892,1717485034651,-151.0,0.00014,2]
[328516893,1717485034660,-151.0,0.00014,2]
[328516894,1717485034670,-157.24112229,0.00014,2]
[328516895,1717485034679,-151.0,0.00014,2]
[328516896,1717485034688,-151.0,0.00014,2]
[328516897,1717485034697,-151.0,0.00014,2]
[328516898,1717485034707,-151.0,0.00014,2]
[328516899,1717485034716,-151.0,0.00014,2]
[328516900,1717485034725,-151.0,0.00014,2]
[328516901,1717485034734,-151.0,0.00014,2]
[328516902,1717485034744,-151.0,0.00014,2]
[328516903,1717485034754,-151.0,0.00014,2]
[328516904,1717485034765,-151.0,0.00014,2]
[328516905,1717485034775,-151.0,0.00014,2]
[328516906,1717485034786,-231.249897,0.00014,2]
[328516907,1717485034797,-151.0,0.00014,2]
[328516908,1717485034807,-151.0,0.00014,2]
[328516909,1717485034818,-151.0,0.00014,2]
[328516910,1717485034827,-151.0,0.00014,2]
[328516911,1717485034838,-151.0,0.00014,2]
[328516912,1717485034850,-151.0,0.00014,2]
[328516913,1717485034860,-151.0,0.00014,2]
[328516914,1717485034870,-205.24035,0.00014,2]
[328516915,1717485034879,-151.0,0.00014,2]
[328516916,1717485034890,-151.0,0.00014,2]
[328516917,1717485034900,-151.0,0.00014,2]
[328516918,1717485034910,-151.0,0.00014,2]
[328516919,1717485034920,-151.0,0.00014,2]
[328516920,1717485034930,-151.0,0.00014,2]
[328516921,1717485034940,-282.312247,0.00014,2]
[328516922,1717485034952,-151.0,0.00014,2]
[328516923,1717485034961,-151.0,0.00014,2]
[328516924,1717485034971,-151.0,0.00014,2]
[328516925,1717485034982,-151.0,0.00014,2]
[328516926,1717485034992,-151.0,0.00014,2]
[328516927,1717485035001,-151.0,0.00014,2]
[328516928,1717485035011,-151.0,0.00014,2]
[328516929,1717485035022,-151.0,0.00014,2]
[328516930,1717485035032,-151.0,0.00014,2]
[328516931,1717485035043,-156.330762,0.00014,2]
[328516932,1717485035053,-180.840553,0.00014,2]
[328516933,1717485035062,-180.840553,0.00014,2]
[328516934,1717485035071,-180.840553,0.00014,2]
[328516935,1717485035080,-180.840553,0.00014,2]
[328516936,1717485035089,-180.840553,0.00014,2]
[328516937,1717485035099,-180.840553,0.00014,2]
[328516938,1717485035108,-180.840553,0.00014,2]
[328516939,1717485035118,-180.840553,0.00014,2]
[328516940,1717485035127,-180.840553,0.00014,2]
[328516941,1717485035137,-180.840553,0.00014,2]
[328516942,1717485035146,-500.0,0.00014,2]
[328516943,1717485035155,-500.0,0.00014,2]
[328516944,1717485035165,-500.0,0.00014,2]
[328516945,1717485035174,-500.0,0.00014,2]
[328516946,1717485035183,-500.0,0.00014,2]
[328516947,1717485035193,-151.0,0.00014,2]
[328516948,1717485035361,-152.473431,0.00014,2]
[328516949,1717485035370,-500.0,0.00014,2]
[328516950,1717485035379,-500.0,0.00014,2]
[328516951,1717485035390,-500.0,0.00014,2]
[328516952,1717485035401,-500.0,0.00014,2]
[328516953,1717485035411,-500.0,0.00014,2]
[328516954,1717485035421,-151.0,0.00014,2]
[328516955,1717485035430,-151.0,0.00014,2]
[328516956,1717485035440,-151.0,0.00014,2]
[328516957,1717485035450,-151.0,0.00014,2]
[328516958,1717485035460,-151.0,0.00014,2]
[328516959,1717485035469,-151.0,0.00014,2]
[328516960,1717485035478,-151.0,0.00014,2]
[328516961,1717485035488,-151.0,0.00014,2]
[328516962,1717485035497,-151.0,0.00014,2]
[328516963,1717485035507,-151.0,0.00014,2]
[328516964,1717485035516,-180.578634,0.00014,2]
[328516965,1717485035525,-180.578634,0.00014,2]
[328516966,1717485035533,-180.578634,0.00014,2]
[328516967,1717485035543,-180.578634,0.00014,2]
[328516968,1717485035552,-180.578634,0.00014,2]
[328516969,1717485035561,-180.578634,0.00014,2]
[328516970,1717485035570,-180.578634,0.00014,2]
[328516971,1717485035579,-180.578634,0.00014,2]
[328516972,1717485035588,-180.578634,0.00014,2]
[328516973,1717485035598,-180.578634,0.00014,2]
[328516974,1717485035606,-151.0,0.00014,2]
[328516975,1717485035615,-151.0,0.00014,2]
[328516976,1717485035624,-151.0,0.00014,2]
[328516977,1717485035633,-151.0,0.00014,2]
[328516978,1717485035642,-151.0,0.00014,2]
[328516979,1717485035651,-151.0,0.00014,2]
[328516980,1717485035660,-151.0,0.00014,2]
[328516981,1717485035669,-151.0,0.00014,2]
[328516982,1717485035678,-151.0,0.00014,2]
[328516983,1717485035687,-151.0,0.00014,2]
[328516984,1717485035696,-151.0,0.00014,2]
[328516985,1717485035705,-159.202269,0.00014,2]
[328516986,1717485035714,-151.0,0.00014,2]
[328516987,1717485035723,-151.0,0.00014,2]
[328516988,1717485035731,-151.0,0.00014,2]
[328516989,1717485035741,-151.0,0.00014,2]
[328516990,1717485035750,-151.0,0.00014,2]
[328516991,1717485035759,-151.0,0.00014,2]
[328516992,1717485035768,-151.0,0.00014,2]
[328516993,1717485035777,-151.0,0.00014,2]
[328516994,1717485035786,-151.0,0.00014,2]
[328516995,1717485035795,-195.689913,0.00014,2]
[328516996,1717485035804,-151.0,0.00014,2]
[328516997,1717485035814,-151.0,0.00014,2]
[328516998,1717485035823,-151.0,0.00014,2]
[328516999,1717485035833,-151.0,0.00014,2]
[328517000,1717485035842,-151.0,0.00014,2]
[328517001,1717485035851,-151.0,0.00014,2]
[328517002,1717485035860,-154.87564,0.00014,2]
[328517003,1717485035869,-151.0,0.00014,2]
[328517004,1717485035878,-151.0,0.00014,2]
[328517005,1717485035887,-151.0,0.00014,2]
[328517006,1717485035896,-151.0,0.00014,2]
[328517007,1717485035905,-243.911741,0.00014,2]
[328517008,1717485035914,-681.830435,0.00014,2]
[328517009,1717485035924,-151.0,0.00014,2]
[328517010,1717485035933,-681.830435,0.00014,2]
[328517011,1717485035942,-151.0,0.00014,2]
[328517012,1717485035951,-681.830435,0.00014,2]
[328517013,1717485035960,-151.0,0.00014,2]
[328517014,1717485035969,-681.830435,0.00014,2]
[328517015,1717485035979,-681.830435,0.00014,2]
[328517016,1717485035989,-151.0,0.00014,2]
[328517017,1717485035999,-151.0,0.00014,2]
[328517018,1717485036008,-681.830435,0.00014,2]
[328517019,1717485036017,-681.830435,0.00014,2]
[328517020,1717485036025,-159.649372,0.00014,2]
[328517021,1717485036035,-681.830435,0.00014,2]
[328517022,1717485036043,-681.830435,0.00014,2]
[328517023,1717485036053,-681.830435,0.00014,2]
[328517024,1717485036062,-284.191044,0.00014,2]
[328517025,1717485036072,-284.191044,0.00014,2]
[328517026,1717485036081,-284.191044,0.00014,2]
[328517027,1717485036090,-284.191044,0.00014,2]
[328517028,1717485036099,-284.191044,0.00014,2]
[328517029,1717485036108,-284.191044,0.00014,2]
[328517030,1717485036117,-284.191044,0.00014,2]
[328517031,1717485036127,-284.191044,0.00014,2]
[328517032,1717485036136,-1337.537297,0.00014,2]
[328517033,1717485036145,-284.191044,0.00014,2]
[328517034,1717485036154,-1337.537297,0.00014,2]
[328517035,1717485036163,-284.191044,0.00014,2]
[328517036,1717485036173,-1337.537297,0.00014,2]
[328517037,1717485036182,-1337.537297,0.00014,2]
[328517038,1717485036191,-1337.537297,0.00014,2]
[328517039,1717485036201,-1337.537297,0.00014,2]
[328517040,1717485036210,-1337.537297,0.00014,2]
[328517041,1717485036219,-1337.537297,0.00014,2]
[328517042,1717485036229,-151.503096,0.00014,2]
[328517043,1717485036238,-334.284065,0.00014,2]
[328517044,1717485036247,-334.284065,0.00014,2]
[328517045,1717485036256,-334.284065,0.00014,2]
[328517046,1717485036266,-334.284065,0.00014,2]
[328517047,1717485036275,-151.0,0.00014,2]
[328517048,1717485036284,-151.0,0.00014,2]
[328517049,1717485036293,-151.0,0.00014,2]
[328517050,1717485036303,-151.0,0.00014,2]
[328517051,1717485036313,-334.284065,0.00014,2]
[328517052,1717485036326,-334.284065,0.00014,2]
[328517053,1717485036335,-264.194448,0.00014,2]
[328517054,1717485036344,-264.194448,0.00014,2]
[328517055,1717485036355,-334.284065,0.00014,2]
[328517056,1717485036364,-264.194448,0.00014,2]
[328517057,1717485036373,-264.194448,0.00014,2]
[328517058,1717485036384,-334.284065,0.00014,2]
[328517059,1717485036396,-264.194448,0.00014,2]
[328517060,1717485036408,-264.194448,0.00014,2]
[328517061,1717485036418,-264.194448,0.00014,2]
[328517062,1717485036427,-264.194448,0.00014,2]
[328517063,1717485036436,-500.0,0.00014,2]
[328517064,1717485036445,-500.0,0.00014,2]
[328517065,1717485036455,-151.0,0.00014,2]
[328517066,1717485036465,-151.0,0.00014,2]
[328517067,1717485036474,-151.0,0.00014,2]
[328517068,1717485036484,-151.0,0.00014,2]
[328517069,1717485036494,-151.0,0.00014,2]
[328517070,1717485036504,-151.0,0.00014,2]
[328517071,1717485036514,-151.0,0.00014,2]
[328517072,1717485036523,-151.0,0.00014,2]
[328517073,1717485036532,-282.836014,0.00014,2]
[328517074,1717485036542,-264.492115,0.00014,2]
[328517075,1717485036551,-264.492115,0.00014,2]
[328517076,1717485036560,-264.492115,0.00014,2]
[328517077,1717485036571,-264.492115,0.00014,2]
[328517078,1717485036581,-264.492115,0.00014,2]
[328517079,1717485036591,-151.0,0.00014,2]
[328517080,1717485036600,-1089.828996,0.00014,2]
[328517081,1717485036609,-1089.828996,0.00014,2]
[328517082,1717485036619,-151.0,0.00014,2]
[328517083,1717485036628,-1089.828996,0.00014,2]
[328517084,1717485036637,-151.0,0.00014,2]
[328517085,1717485036647,-1089.828996,0.00014,2]
[328517086,1717485036657,-151.0,0.00014,2]
[328517087,1717485036666,-264.492115,0.00014,2]
[328517088,1717485036675,-264.492115,0.00014,2]
[328517089,1717485036685,-151.0,0.00014,2]
[328517090,1717485036694,-264.492115,0.00014,2]
[328517091,1717485036703,-264.492115,0.00014,2]
[328517092,1717485036713,-264.492115,0.00014,2]
[328517093,1717485036722,-1089.828996,0.00014,2]
[328517094,1717485036731,-1089.828996,0.00014,2]
[328517095,1717485036740,-1089.828996,0.00014,2]
[328517096,1717485036750,-1089.828996,0.00014,2]
[328517097,1717485036759,-151.0,0.00014,2]
[328517098,1717485036768,-293.09765,0.00014,2]
[328517099,1717485036777,-151.0,0.00014,2]
[328517100,1717485036786,-153.447761,0.00014,2]
[328517101,1717485036795,-177.524272,0.00014,2]
[328517102,1717485036805,-177.524272,0.00014,2]
[328517103,1717485036815,-177.524272,0.00014,2]
[328517104,1717485036824,-177.524272,0.00014,2]
[328517105,1717485036833,-177.524272,0.00014,2]
[328517106,1717485036842,-177.524272,0.00014,2]
[328517107,1717485036851,-177.524272,0.00014,2]
[328517108,1717485036860,-177.524272,0.00014,2]
[328517109,1717485036870,-177.524272,0.00014,2]
[328517110,1717485036879,-177.524272,0.00014,2]
[328517111,1717485036888,-1729.281875,0.00014,2]
[328517112,1717485036898,-1729.281875,0.00014,2]
[328517113,1717485036907,-1729.281875,0.00014,2]
[328517114,1717485036917,-1729.281875,0.00014,2]
[328517115,1717485036926,-1729.281875,0.00014,2]
[328517116,1717485036935,-1729.281875,0.00014,2]
[328517117,1717485036945,-1729.281875,0.00014,2]
[328517118,1717485036954,-1729.281875,0.00014,2]
[328517119,1717485036963,-151.0,0.00014,2]
[328517120,1717485036972,-151.0,0.00014,2]
[328517121,1717485036981,-152.403622,0.00014,2]
[328517122,1717485036991,-151.0,0.00014,2]
[328517123,1717485037000,-151.0,0.00014,2]
[328517124,1717485037010,-151.0,0.00014,2]
[328517125,1717485037019,-151.0,0.00014,2]
[328517126,1717485037028,-151.0,0.00014,2]
[328517127,1717485037038,-151.0,0.00014,2]
[328517128,1717485037047,-151.0,0.00014,2]
[328517129,1717485037057,-151.0,0.00014,2]
[328517130,1717485037067,-198.259037,0.00014,2]
[328517131,1717485037076,-177.186012,0.00014,2]
[328517132,1717485037086,-177.186012,0.00014,2]
[328517133,1717485037095,-436.919117,0.00014,2]
[328517134,1717485037104,-177.186012,0.00014,2]
[328517135,1717485037114,-436.919117,0.00014,2]
[328517136,1717485037123,-177.186012,0.00014,2]
[328517137,1717485037133,-436.919117,0.00014,2]
[328517138,1717485037143,-177.186012,0.00014,2]
[328517139,1717485037153,-436.919117,0.00014,2]
[328517140,1717485037163,-436.919117,0.00014,2]
[328517141,1717485037173,-151.0,0.00014,2]
[328517142,1717485037182,-644.252075,0.00014,2]
[328517143,1717485037192,-436.919117,0.00014,2]
[328517144,1717485037201,-644.252075,0.00014,2]
[328517145,1717485037211,-436.919117,0.00014,2]
[328517146,1717485037220,-644.252075,0.00014,2]
[328517147,1717485037230,-436.919117,0.00014,2]
[328517148,1717485037239,-644.252075,0.00014,2]
[328517149,1717485037249,-436.919117,0.00014,2]
[328517150,1717485037258,-644.252075,0.00014,2]
[328517151,1717485037267,-436.919117,0.00014,2]
[328517152,1717485037277,-151.0,0.00014,2]
[328517153,1717485037286,-151.0,0.00014,2]
[328517154,1717485037295,-151.0,0.00014,2]
[328517155,1717485037304,-151.0,0.00014,2]
[328517156,1717485037316,-177.186012,0.00014,2]
[328517157,1717485037327,-177.186012,0.00014,2]
[328517158,1717485037336,-177.186012,0.00014,2]
[328517159,1717485037345,-151.0,0.00014,2]
[328517160,1717485037355,-151.0,0.00014,2]
[328517161,1717485037365,-644.252075,0.00014,2]
[328517162,1717485037375,-151.0,0.00014,2]
[328517163,1717485037384,-177.186012,0.00014,2]
[328517164,1717485037393,-644.252075,0.00014,2]
[328517165,1717485037405,-151.0,0.00014,2]
[328517166,1717485037415,-177.186012,0.00014,2]
[328517167,1717485037424,-644.252075,0.00014,2]
[328517168,1717485037434,-151.0,0.00014,2]
[328517169,1717485037443,-644.252075,0.00014,2]
[328517170,1717485037453,-644.252075,0.00014,2]
[328517171,1717485037462,-167.929032,0.00014,2]
[328517172,1717485037471,-167.929032,0.00014,2]
[328517173,1717485037481,-167.929032,0.00014,2]
[328517174,1717485037490,-167.929032,0.00014,2]
[328517175,1717485037500,-167.929032,0.00014,2]
[328517176,1717485037509,-167.929032,0.00014,2]
[328517177,1717485037519,-167.929032,0.00014,2]
[328517178,1717485037529,-167.929032,0.00014,2]
[328517179,1717485037538,-167.929032,0.00014,2]
[328517180,1717485037548,-167.929032,0.00014,2]
[328517181,1717485037557,-151.0,0.00014,2]
[328517182,1717485037568,-154.274208,0.00014,2]
[328517183,1717485037577,-151.0,0.00014,2]
[328517184,1717485037587,-151.0,0.00014,2]
[328517185,1717485037596,-151.0,0.00014,2]
[328517186,1717485037605,-151.0,0.00014,2]
[328517187,1717485037614,-151.0,0.00014,2]
[328517188,1717485037624,-151.0,0.00014,2]
[328517189,1717485037633,-151.0,0.00014,2]
[328517190,1717485037643,-151.0,0.00014,2]
[328517191,1717485037652,-151.0,0.00014,2]
[328517192,1717485037662,-151.0,0.00014,2]
[328517193,1717485037672,-151.0,0.00014,2]
[328517194,1717485037681,-151.0,0.00014,2]
[328517195,1717485037690,-434.678208,0.00014,2]
[328517196,1717485037700,-434.678208,0.00014,2]
[328517197,1717485037710,-151.0,0.00014,2]
[328517198,1717485037719,-434.678208,0.00014,2]
[328517199,1717485037729,-434.678208,0.00014,2]
[328517200,1717485037739,-151.0,0.00014,2]
[328517201,1717485037748,-434.678208,0.00014,2]
[328517202,1717485037758,-151.0,0.00014,2]
[328517203,1717485037767,-151.0,0.00014,2]
[328517204,1717485037776,-434.678208,0.00014,2]
[328517205,1717485037786,-151.0,0.00014,2]
[328517206,1717485037795,-154.114703,0.00014,2]
[328517207,1717485037805,-151.0,0.00014,2]
[328517208,1717485037815,-151.0,0.00014,2]
[328517209,1717485037824,-434.678208,0.00014,2]
[328517210,1717485037834,-151.0,0.00014,2]
[328517211,1717485037844,-434.678208,0.00014,2]
[328517212,1717485037853,-151.0,0.00014,2]
[328517213,1717485037863,-151.0,0.00014,2]
[328517214,1717485037872,-434.678208,0.00014,2]
[328517215,1717485037881,-151.0,0.00014,2]
[328517216,1717485037891,-434.678208,0.00014,2]
[328517217,1717485037900,-434.678208,0.00014,2]
[328517218,1717485037909,-434.678208,0.00014,2]
[328517219,1717485037919,-274.916866,0.00014,2]
[328517220,1717485037928,-274.916866,0.00014,2]
[328517221,1717485037937,-151.0,0.00014,2]
[328517222,1717485037946,-274.916866,0.00014,2]
[328517223,1717485037955,-151.0,0.00014,2]
[328517224,1717485037965,-274.916866,0.00014,2]
[328517225,1717485037974,-151.0,0.00014,2]
[328517226,1717485037983,-151.0,0.00014,2]